[Event "NJSK 2021 Jeugd C"]
[Site "Almelo, Netherlands"]
[Date "2021.08.06"]
[Round "8.4"]
[White "Smeets, Kobe"]
[Black "Katpatal, Akshaj"]
[Result "1-0"]
[TimeControl "90min + 30sec/move"]
[WhiteElo "1897"]
[BlackElo "1650"]

1. e4 {[%clk 01:30:57]} {[%emt 00:00:02]} e5 {[%clk 01:30:54]} {[%emt
00:00:06]} 2. Nf3 {[%clk 01:31:22]} {[%emt 00:00:05]} Nc6 {[%clk 01:31:18]}
{[%emt 00:00:07]} 3. Bb5 {[%clk 01:31:46]} {[%emt 00:00:06]} Bc5 {[%clk
01:31:31]} {[%emt 00:00:17]} 4. O-O {[%clk 01:32:10]} {[%emt 00:00:06]} Nf6
{[%clk 01:31:43]} {[%emt 00:00:18]} 5. Nxe5 {[%clk 01:31:43]} {[%emt 00:00:56]}
Nxe5 {[%clk 01:31:38]} {[%emt 00:00:35]} 6. d4 {[%clk 01:32:07]} {[%emt
00:00:07]} Bb6 {[%clk 01:31:34]} {[%emt 00:00:34]} 7. dxe5 {[%clk 01:31:16]}
{[%emt 00:01:21]} Nxe4 {[%clk 01:31:33]} {[%emt 00:00:31]} 8. Qg4 {[%clk
01:26:14]} {[%emt 00:05:31]} Nxf2 {[%clk 01:31:36]} {[%emt 00:00:28]} 9. Rxf2
{[%clk 01:26:37]} {[%emt 00:00:07]} Bxf2+ {[%clk 01:31:41]} {[%emt 00:00:24]}
10. Kxf2 {[%clk 01:26:59]} {[%emt 00:00:08]} Qe7 {[%clk 01:31:40]} {[%emt
00:00:31]} 11. Nc3 {[%clk 01:17:11]} {[%emt 00:10:19]} O-O {[%clk 01:32:02]}
{[%emt 00:00:08]} 12. Bg5 {[%clk 01:00:05]} {[%emt 00:17:35]} Qc5+ {[%clk
01:31:59]} {[%emt 00:00:33]} 13. Be3 {[%clk 01:00:18]} {[%emt 00:00:17]} Qe7
{[%clk 01:32:24]} {[%emt 00:00:06]} 14. Bd3 {[%clk 00:57:53]} {[%emt 00:02:54]}
d6 {[%clk 01:32:40]} {[%emt 00:00:15]} 15. Qe4 {[%clk 00:57:49]} {[%emt
00:00:34]} f5 {[%clk 01:32:53]} {[%emt 00:00:17]} 16. exf6 {[%clk 00:56:19]}
{[%emt 00:02:00]} Qxf6+ {[%clk 01:32:15]} {[%emt 00:01:06]} 17. Kg1 {[%clk
00:55:50]} {[%emt 00:01:00]} Bf5 {[%clk 01:29:29]} {[%emt 00:03:16]} 18. Qc4+
{[%clk 00:48:13]} {[%emt 00:08:07]} Kh8 {[%clk 01:29:09]} {[%emt 00:00:49]} 19.
Nd5 {[%clk 00:35:01]} {[%emt 00:13:44]} Qe6 {[%clk 01:21:56]} {[%emt 00:07:43]}
20. Bd4 {[%clk 00:25:23]} {[%emt 00:10:08]} Bxd3 {[%emt 00:01:21]} 21. Qxd3
{[%clk 00:25:11]} {[%emt 00:00:40]} Rae8 {[%clk 01:21:10]} {[%emt 00:00:25]} 22.
h3 {[%clk 00:23:24]} {[%emt 00:02:18]} Qf5 {[%clk 01:19:37]} {[%emt 00:02:03]}
23. Qxf5 {[%clk 00:14:14]} {[%emt 00:09:41]} Rxf5 {[%clk 01:19:59]} {[%emt
00:00:08]} 24. Nxc7 {[%clk 00:14:42]} {[%emt 00:00:02]} Re7 {[%clk 01:19:55]}
{[%emt 00:00:33]} 25. Bxa7 {[%clk 00:10:15]} {[%emt 00:04:58]} Rxc7 {[%clk
01:20:15]} {[%emt 00:00:09]} 26. c3 {[%clk 00:10:29]} {[%emt 00:00:16]} h6
{[%clk 01:20:29]} {[%emt 00:00:16]} 27. Bd4 {[%clk 00:10:51]} {[%emt 00:00:08]}
Re7 {[%clk 01:19:36]} {[%emt 00:01:23]} 28. Rf1 {[%clk 00:09:41]} {[%emt
00:01:40]} Rxf1+ {[%clk 01:19:45]} {[%emt 00:00:21]} 29. Kxf1 {[%clk 00:10:11]}
Kg8 {[%clk 01:20:04]} {[%emt 00:00:11]} 30. a4 {[%clk 00:09:48]} {[%emt
00:00:53]} Kf7 {[%clk 01:19:50]} {[%emt 00:00:44]} 31. b4 {[%clk 00:09:54]}
{[%emt 00:00:23]} Ke6 {[%clk 01:20:08]} {[%emt 00:00:12]} 32. Ke2 {[%clk
00:08:06]} {[%emt 00:02:18]} Kf5+ {[%clk 01:19:45]} {[%emt 00:00:53]} 33. Kf3
{[%emt 00:02:37]} g5 {[%clk 01:18:37]} {[%emt 00:01:32]} 34. g4+ {[%clk
00:04:35]} {[%emt 00:02:01]} Kg6 {[%clk 01:19:00]} {[%emt 00:00:07]} 35. Be3
{[%clk 00:04:53]} {[%emt 00:00:12]} h5 {[%clk 01:18:50]} {[%emt 00:00:40]} 36.
a5 {[%clk 00:02:57]} {[%emt 00:02:27]} hxg4+ {[%clk 01:18:56]} {[%emt
00:00:23]} 37. hxg4 {[%clk 00:03:26]} Rc7 {[%clk 01:19:01]} {[%emt 00:00:25]}
38. Bd4 {[%clk 00:03:46]} {[%emt 00:00:10]} d5 {[%clk 01:18:46]} {[%emt
00:00:45]} 39. b5 {[%clk 00:03:19]} {[%emt 00:00:57]} Rc8 {[%clk 01:18:54]}
{[%emt 00:00:22]} 40. a6 {[%clk 00:03:36]} {[%emt 00:00:13]} bxa6 {[%clk
01:19:18]} {[%emt 00:00:05]} 41. bxa6 {[%clk 00:04:06]} {[%emt 00:00:01]} Re8
{[%clk 01:19:12]} {[%emt 00:00:36]} 42. a7 {[%clk 00:04:15]} {[%emt 00:00:21]}
Kf7 {[%clk 01:18:54]} {[%emt 00:00:48]} 43. Be5 {[%clk 00:03:57]} {[%emt
00:00:47]} Ra8 {[%clk 01:19:14]} {[%emt 00:00:11]} 44. Bb8 {[%clk 00:04:22]}
{[%emt 00:00:05]} Ke6 {[%clk 01:19:27]} {[%emt 00:00:16]} 45. Ke3 {[%clk
00:04:47]} {[%emt 00:00:05]} Kd7 {[%clk 01:19:01]} {[%emt 00:00:56]} 46. Kd3
{[%clk 00:04:54]} {[%emt 00:00:24]} Ke7 {[%clk 01:18:26]} {[%emt 00:01:05]} 47.
Kd4 {[%clk 00:05:11]} {[%emt 00:00:13]} Ke6 {[%clk 01:18:49]} {[%emt 00:00:06]}
48. Kc5 {[%clk 00:05:36]} {[%emt 00:00:05]} Kf7 {[%clk 01:18:39]} {[%emt
00:00:41]} 49. Kxd5 {[%clk 00:05:55]} {[%emt 00:00:10]} Ke7 {[%clk 01:19:04]}
{[%emt 00:00:06]} 50. Kc6 {[%clk 00:06:17]} {[%emt 00:00:08]} Rxa7 {[%clk
01:19:25]} {[%emt 00:00:09]} 51. Bxa7 {[%clk 00:06:37]} {[%emt 00:00:10]} Kd8
{[%clk 01:19:48]} {[%emt 00:00:05]} 52. Kb7 {[%clk 00:06:32]} {[%emt 00:00:36]}
Kd7 {[%clk 01:20:08]} {[%emt 00:00:09]} 53. c4 {[%clk 00:06:59]} {[%emt
00:00:04]} Kd6 {[%clk 01:20:28]} {[%emt 00:00:11]} 54. c5+ {[%clk 00:07:24]}
{[%emt 00:00:04]} Ke5 {[%clk 01:20:54]} {[%emt 00:00:04]} 55. c6 {[%clk
00:07:48]} {[%emt 00:00:06]} Kf4 {[%clk 01:21:23]} {[%emt 00:00:02]} 56. c7
{[%clk 00:08:11]} {[%emt 00:00:07]} Kg3 {[%clk 01:21:46]} {[%emt 00:00:06]} 57.
c8=Q {[%clk 00:08:32]} {[%emt 00:00:09]} Kh2 {[%clk 01:22:06]} {[%emt
00:00:10]} 58. Qc3 {[%clk 00:08:26]} {[%emt 00:00:37]} Kh1 {[%clk 01:22:25]}
{[%emt 00:00:10]} 59. Qh3# {[%clk 00:08:19]} {[%emt 00:00:36]} 1-0

[Event "NJSK 2021 Jeugd C"]
[Site "Almelo, Netherlands"]
[Date "2021.08.06"]
[Round "8.5"]
[White "Aravindhan, Achyuth"]
[Black "Dekker, Thiemen"]
[Result "0-1"]
[TimeControl "90min + 30sec/move"]
[WhiteElo "1031"]
[BlackElo "1806"]

1. e4 {[%clk 01:30:58]} {[%emt 00:00:01]} e5 {[%clk 01:30:57]} {[%emt
00:00:03]} 2. Nf3 {[%clk 01:31:22]} {[%emt 00:00:06]} Nc6 {[%clk 01:31:23]}
{[%emt 00:00:04]} 3. Bb5 {[%clk 01:31:45]} {[%emt 00:00:08]} f5 {[%clk
01:31:48]} {[%emt 00:00:04]} 4. Nc3 {[%clk 01:32:08]} {[%emt 00:00:07]} fxe4
{[%clk 01:32:06]} {[%emt 00:00:12]} 5. Nxe4 {[%clk 01:32:27]} {[%emt 00:00:10]}
Nf6 {[%clk 01:32:31]} {[%emt 00:00:06]} 6. Qe2 {[%clk 01:32:46]} {[%emt
00:00:10]} d5 {[%clk 01:32:11]} {[%emt 00:00:52]} 7. Nxf6+ {[%clk 01:32:22]}
{[%emt 00:00:54]} Qxf6 {[%clk 01:32:37]} {[%emt 00:00:04]} 8. Qxe5+ {[%clk
01:30:12]} {[%emt 00:02:39]} Qxe5+ {[%clk 01:33:00]} {[%emt 00:00:07]} 9. Nxe5
{[%clk 01:30:35]} {[%emt 00:00:07]} Bd7 {[%clk 01:33:03]} {[%emt 00:00:27]} 10.
Nxd7 {[%clk 01:30:41]} {[%emt 00:00:23]} Kxd7 {[%clk 01:33:31]} {[%emt
00:00:02]} 11. d3 {[%clk 01:30:28]} {[%emt 00:00:42]} Bc5 {[%clk 01:33:10]}
{[%emt 00:00:52]} 12. Bf4 {[%clk 01:28:56]} {[%emt 00:01:49]} Rae8+ {[%clk
01:33:02]} {[%emt 00:00:51]} 13. Kf1 {[%clk 01:28:16]} {[%emt 00:01:02]} a6
{[%clk 01:30:42]} {[%emt 00:02:58]} 14. Bxc6+ {[%clk 01:26:52]} {[%emt
00:01:54]} bxc6 {[%clk 01:30:11]} {[%emt 00:01:02]} 15. g4 {[%clk 01:25:24]}
{[%emt 00:01:51]} Rb8 {[%clk 01:27:40]} {[%emt 00:03:07]} 16. Be5 {[%clk
01:23:11]} {[%emt 00:02:33]} Rhf8 {[%clk 01:26:47]} {[%emt 00:01:32]} 17. d4
{[%clk 01:22:46]} {[%emt 00:00:54]} Bd6 {[%clk 01:26:46]} {[%emt 00:00:33]} 18.
Bxd6 {[%clk 01:22:40]} {[%emt 00:00:35]} Kxd6 {[%emt 00:00:26]} 19. Rb1 {[%clk
01:22:19]} {[%emt 00:00:39]} Rf4 {[%clk 01:27:15]} {[%emt 00:00:19]} 20. Rg1
{[%clk 01:20:11]} {[%emt 00:02:34]} Rxd4 {[%clk 01:25:36]} {[%emt 00:02:12]} 21.
Rg3 {[%clk 01:19:23]} {[%emt 00:01:15]} Rf8 {[%clk 01:24:02]} {[%emt 00:02:08]}
22. Re1 {[%clk 01:18:25]} {[%emt 00:01:25]} Rdf4 {[%clk 01:20:46]} {[%emt
00:03:48]} 23. Re2 {[%clk 01:18:17]} {[%emt 00:00:36]} d4 {[%clk 01:18:28]}
{[%emt 00:02:49]} 24. h3 {[%clk 01:17:39]} {[%emt 00:01:07]} c5 {[%clk
01:17:09]} {[%emt 00:01:51]} 25. Ra3 {[%clk 01:16:27]} {[%emt 00:01:41]} c4
{[%clk 01:16:55]} {[%emt 00:00:45]} 26. Rxa6+ {[%clk 01:15:16]} {[%emt
00:01:41]} c6 {[%clk 01:16:24]} {[%emt 00:01:01]} 27. Ra7 {[%clk 01:14:06]}
{[%emt 00:01:25]} R8f7 {[%clk 01:11:53]} {[%emt 00:05:15]} 28. Ra3 {[%clk
01:07:19]} {[%emt 00:07:10]} Rf3 {[%clk 01:09:45]} {[%emt 00:02:47]} 29. Rxf3
{[%clk 01:06:44]} {[%emt 00:01:04]} Rxf3 {[%clk 01:10:06]} {[%emt 00:00:09]} 30.
Kg2 {[%clk 01:07:04]} {[%emt 00:00:09]} Rf7 {[%clk 01:05:52]} {[%emt 00:04:45]}
31. f3 {[%clk 01:04:31]} {[%emt 00:03:03]} Ra7 {[%clk 01:04:39]} {[%emt
00:01:42]} 32. a3 {[%clk 01:03:03]} {[%emt 00:01:54]} Rb7 {[%clk 01:03:46]}
{[%emt 00:01:29]} 33. c3 {[%clk 01:02:44]} {[%emt 00:00:48]} d3 {[%clk
01:02:33]} {[%emt 00:01:44]} 34. Rd2 {[%clk 01:00:28]} {[%emt 00:02:44]} Kc5
{[%emt 00:01:32]} 35. Kf2 {[%clk 00:54:27]} {[%emt 00:06:29]} Kb5 {[%clk
01:00:32]} {[%emt 00:01:33]} 36. Ke1 {[%clk 00:53:51]} {[%emt 00:01:04]} Ka4
{[%clk 01:00:14]} {[%emt 00:00:49]} 37. Kd1 {[%clk 00:53:30]} {[%emt 00:00:51]}
Re7 {[%clk 00:59:09]} {[%emt 00:01:35]} 38. f4 {[%clk 00:51:52]} {[%emt
00:02:08]} Re3 {[%clk 00:59:19]} {[%emt 00:00:20]} 39. h4 {[%clk 00:51:39]}
{[%emt 00:00:41]} Rf3 {[%clk 00:59:01]} {[%emt 00:00:50]} 40. Ke1 {[%clk
00:50:42]} {[%emt 00:01:26]} Rxf4 {[%clk 00:58:58]} {[%emt 00:00:34]} 41. Rg2
{[%clk 00:49:57]} {[%emt 00:01:13]} Kb3 {[%emt 00:00:25]} 42. Kd2 {[%clk
00:47:25]} {[%emt 00:02:59]} Rf1 {[%clk 00:58:43]} {[%emt 00:00:55]} 43. Ke3
{[%clk 00:47:01]} {[%emt 00:00:51]} Rc1 {[%clk 00:58:23]} {[%emt 00:00:53]} 44.
Rf2 {[%clk 00:42:48]} {[%emt 00:04:43]} Rc2 {[%clk 00:58:09]} {[%emt 00:00:44]}
45. Rd2 {[%clk 00:42:44]} {[%emt 00:00:32]} Rc1 {[%clk 00:56:42]} {[%emt
00:01:59]} 46. Rg2 {[%clk 00:42:40]} {[%emt 00:00:29]} Re1 {[%clk 00:56:06]}
{[%emt 00:01:12]} 47. Kd2 {[%clk 00:42:29]} {[%emt 00:00:39]} Re4 {[%clk
00:55:10]} {[%emt 00:01:26]} 48. Kd1 {[%clk 00:42:04]} {[%emt 00:00:54]} g6
{[%clk 00:54:18]} {[%emt 00:01:25]} 49. Kc1 {[%clk 00:40:39]} {[%emt 00:01:53]}
h5 {[%clk 00:53:03]} {[%emt 00:01:46]} 50. gxh5 {[%clk 00:40:15]} {[%emt
00:00:53]} gxh5 {[%clk 00:53:27]} {[%emt 00:00:06]} 51. Rh2 {[%clk 00:40:32]}
{[%emt 00:00:13]} Rg4 {[%clk 00:53:38]} {[%emt 00:00:20]} 52. Kd1 {[%clk
00:39:18]} {[%emt 00:01:42]} Rg1+ {[%clk 00:53:49]} {[%emt 00:00:21]} 53. Kd2
{[%clk 00:39:11]} {[%emt 00:00:36]} Kxb2 {[%clk 00:54:04]} {[%emt 00:00:16]} 54.
Rf2 {[%clk 00:38:50]} {[%emt 00:00:51]} Kxa3 {[%clk 00:52:47]} {[%emt
00:01:48]} 55. Rf5 {[%clk 00:38:55]} {[%emt 00:00:23]} Rg2+ {[%clk 00:52:56]}
{[%emt 00:00:22]} 56. Kd1 {[%clk 00:38:44]} {[%emt 00:00:40]} Kb2 {[%emt
00:00:51]} 57. Rxh5 {[%clk 00:38:51]} {[%emt 00:00:21]} Kxc3 {[%clk 00:52:45]}
{[%emt 00:00:23]} 0-1

[Event "NJSK 2021 Jeugd C"]
[Site "Almelo, Netherlands"]
[Date "2021.08.06"]
[Round "8.6"]
[White "Ponomarev, Ivan"]
[Black "Arnold, Rhys"]
[Result "0-1"]
[TimeControl "90min + 30sec/move"]
[WhiteElo "1723"]
[BlackElo "1748"]

1. e4 {[%clk 01:30:58]} {[%emt 00:00:01]} c5 {[%clk 01:30:57]} {[%emt
00:00:03]} 2. Nf3 {[%clk 01:31:25]} {[%emt 00:00:03]} e6 {[%clk 01:31:21]}
{[%emt 00:00:07]} 3. d4 {[%clk 01:31:51]} {[%emt 00:00:04]} cxd4 {[%clk
01:31:47]} {[%emt 00:00:04]} 4. Nxd4 {[%clk 01:32:17]} {[%emt 00:00:04]} Nf6
{[%clk 01:32:13]} {[%emt 00:00:04]} 5. Nc3 {[%clk 01:32:40]} {[%emt 00:00:06]}
Nc6 {[%clk 01:32:18]} {[%emt 00:00:25]} 6. Ndb5 {[%clk 01:31:32]} {[%emt
00:01:39]} d6 {[%clk 01:32:01]} {[%emt 00:00:46]} 7. Bf4 {[%clk 01:31:45]}
{[%emt 00:00:17]} e5 {[%clk 01:32:16]} {[%emt 00:00:15]} 8. Bg5 {[%clk
01:32:07]} {[%emt 00:00:08]} a6 {[%clk 01:32:27]} {[%emt 00:00:19]} 9. Bxf6
{[%clk 01:32:09]} {[%emt 00:00:28]} gxf6 {[%clk 01:32:37]} {[%emt 00:00:20]} 10.
Na3 {[%clk 01:32:33]} {[%emt 00:00:07]} f5 {[%clk 01:32:00]} {[%emt 00:01:07]}
11. f3 {[%clk 01:26:43]} {[%emt 00:06:20]} f4 {[%clk 01:25:43]} {[%emt
00:06:46]} 12. Qd2 {[%clk 01:20:06]} {[%emt 00:07:07]} Be7 {[%clk 01:23:52]}
{[%emt 00:02:21]} 13. O-O-O {[%clk 01:17:17]} {[%emt 00:03:20]} Be6 {[%clk
01:22:30]} {[%emt 00:01:52]} 14. Nd5 {[%clk 01:09:30]} {[%emt 00:08:17]} b5
{[%clk 01:16:52]} {[%emt 00:06:08]} 15. Kb1 {[%clk 01:05:25]} {[%emt 00:04:34]}
Rc8 {[%clk 01:15:05]} {[%emt 00:02:17]} 16. c3 {[%clk 01:01:03]} {[%emt
00:04:52]} Bxd5 {[%clk 01:14:39]} {[%emt 00:00:57]} 17. Qxd5 {[%clk 00:58:10]}
{[%emt 00:03:23]} O-O {[%clk 01:13:10]} {[%emt 00:01:58]} 18. g3 {[%clk
00:55:33]} {[%emt 00:03:07]} fxg3 {[%clk 01:10:02]} {[%emt 00:03:37]} 19. hxg3
{[%clk 00:51:33]} {[%emt 00:04:32]} Kh8 {[%clk 01:01:53]} {[%emt 00:08:38]} 20.
Qd2 {[%clk 00:45:46]} {[%emt 00:06:16]} Rg8 {[%clk 01:02:00]} {[%emt 00:00:25]}
21. Bxb5 {[%clk 00:42:29]} {[%emt 00:03:47]} axb5 {[%emt 00:00:34]} 22. Rxh7+
{[%clk 00:41:56]} {[%emt 00:01:02]} Kxh7 {[%clk 01:02:19]} {[%emt 00:00:07]} 23.
Rh1+ {[%clk 00:42:22]} {[%emt 00:00:05]} Bh4 {[%clk 01:02:22]} {[%emt
00:00:27]} 24. Rxh4+ {[%clk 00:42:10]} {[%emt 00:00:41]} Qxh4 {[%clk 01:02:42]}
{[%emt 00:00:10]} 25. gxh4 {[%clk 00:42:36]} {[%emt 00:00:04]} b4 {[%clk
00:51:38]} {[%emt 00:11:35]} 26. cxb4 {[%clk 00:38:51]} {[%emt 00:04:15]} Nd4
{[%clk 00:48:12]} {[%emt 00:03:56]} 27. b3 {[%clk 00:34:26]} {[%emt 00:04:55]}
Rg1+ {[%clk 00:47:38]} {[%emt 00:01:02]} 28. Kb2 {[%clk 00:34:28]} {[%emt
00:00:30]} Rcg8 {[%clk 00:47:22]} {[%emt 00:00:45]} 29. Qe3 {[%clk 00:31:22]}
{[%emt 00:03:37]} R8g2+ {[%clk 00:44:56]} {[%emt 00:02:55]} 30. Kc3 {[%clk
00:31:07]} {[%emt 00:00:45]} Rg3 {[%clk 00:35:15]} {[%emt 00:10:11]} 31. Kc4
{[%clk 00:30:16]} {[%emt 00:01:22]} R1g2 {[%clk 00:34:04]} {[%emt 00:01:41]} 32.
b5 {[%clk 00:25:57]} {[%emt 00:04:49]} Rxa2 {[%clk 00:26:55]} {[%emt 00:07:38]}
33. Kb4 {[%clk 00:17:50]} {[%emt 00:08:36]} Rxa3 {[%clk 00:20:54]} {[%emt
00:06:32]} 34. Qxd4 {[%clk 00:16:29]} {[%emt 00:01:51]} exd4 {[%clk 00:20:48]}
{[%emt 00:00:37]} 35. Kxa3 {[%clk 00:16:49]} {[%emt 00:00:10]} Rg8 {[%clk
00:20:16]} {[%emt 00:01:02]} 36. Kb4 {[%clk 00:16:52]} {[%emt 00:00:27]} d3
{[%clk 00:19:26]} {[%emt 00:01:20]} 37. Kc3 {[%clk 00:17:16]} {[%emt 00:00:06]}
Rb8 {[%clk 00:19:18]} {[%emt 00:00:37]} 38. Kxd3 {[%clk 00:17:38]} {[%emt
00:00:08]} Rxb5 {[%clk 00:19:41]} {[%emt 00:00:08]} 39. Kc4 {[%clk 00:17:49]}
{[%emt 00:00:18]} Rc5+ {[%clk 00:19:27]} {[%emt 00:00:44]} 40. Kd4 {[%clk
00:18:12]} {[%emt 00:00:08]} Rh5 {[%clk 00:14:11]} {[%emt 00:05:45]} 41. b4
{[%clk 00:18:28]} {[%emt 00:00:15]} Rxh4 {[%clk 00:13:16]} {[%emt 00:01:25]} 42.
Kd5 {[%clk 00:18:28]} {[%emt 00:00:29]} Rh5+ {[%clk 00:12:53]} {[%emt
00:00:53]} 43. Kxd6 {[%clk 00:18:45]} {[%emt 00:00:14]} Rb5 {[%clk 00:13:19]}
{[%emt 00:00:03]} 44. Ke7 {[%clk 00:18:30]} {[%emt 00:00:46]} Kg7 {[%clk
00:13:37]} {[%emt 00:00:11]} 45. e5 {[%clk 00:17:58]} {[%emt 00:01:02]} Rxe5+
{[%clk 00:13:52]} {[%emt 00:00:15]} 0-1

[Event "NJSK 2021 Jeugd C"]
[Site "Almelo, Netherlands"]
[Date "2021.08.06"]
[Round "8.7"]
[White "Madularea, David"]
[Black "Verheij, Dana"]
[Result "0-1"]
[TimeControl "90min + 30sec/move"]
[WhiteElo "1656"]
[BlackElo "1931"]

1. e4 {[%clk 01:30:57]} {[%emt 00:00:02]} c5 {[%clk 01:30:52]} {[%emt
00:00:09]} 2. Nf3 {[%clk 01:31:21]} {[%emt 00:00:05]} d6 {[%clk 01:31:16]}
{[%emt 00:00:07]} 3. d4 {[%clk 01:31:45]} {[%emt 00:00:06]} cxd4 {[%clk
01:31:43]} {[%emt 00:00:03]} 4. Nxd4 {[%clk 01:32:08]} {[%emt 00:00:06]} Nf6
{[%clk 01:32:07]} {[%emt 00:00:06]} 5. Nc3 {[%clk 01:32:32]} {[%emt 00:00:06]}
a6 {[%clk 01:32:30]} {[%emt 00:00:08]} 6. Bg5 {[%clk 01:32:51]} {[%emt
00:00:10]} e6 {[%clk 01:32:37]} {[%emt 00:00:23]} 7. f4 {[%clk 01:33:00]}
{[%emt 00:00:20]} Be7 {[%clk 01:32:43]} {[%emt 00:00:25]} 8. Qf3 {[%clk
01:33:09]} {[%emt 00:00:20]} Qc7 {[%clk 01:32:51]} {[%emt 00:00:24]} 9. O-O-O
{[%clk 01:32:25]} {[%emt 00:01:13]} Nbd7 {[%clk 01:32:36]} {[%emt 00:00:46]} 10.
Bd3 {[%clk 01:30:25]} {[%emt 00:02:29]} b5 {[%clk 01:32:19]} {[%emt 00:00:47]}
11. Rhe1 {[%clk 01:29:59]} {[%emt 00:00:56]} Bb7 {[%clk 01:32:21]} {[%emt
00:00:29]} 12. Kb1 {[%clk 01:28:06]} {[%emt 00:02:22]} b4 {[%clk 01:29:38]}
{[%emt 00:03:14]} 13. Nce2 {[%clk 01:21:45]} {[%emt 00:06:50]} O-O {[%clk
01:27:39]} {[%emt 00:02:30]} 14. Nc1 {[%clk 01:15:56]} {[%emt 00:06:18]} Rfe8
{[%clk 01:23:16]} {[%emt 00:04:54]} 15. Qh3 {[%clk 01:10:54]} {[%emt 00:05:31]}
Nc5 {[%clk 01:14:37]} {[%emt 00:09:09]} 16. Bxf6 {[%clk 00:58:12]} {[%emt
00:13:11]} Bxf6 {[%clk 01:03:29]} {[%emt 00:11:39]} 17. e5 {[%clk 00:55:57]}
{[%emt 00:02:44]} Nxd3 {[%clk 00:44:46]} {[%emt 00:19:15]} 18. Nxd3 {[%clk
00:56:17]} {[%emt 00:00:08]} dxe5 {[%clk 00:43:34]} {[%emt 00:01:43]} 19. fxe5
{[%clk 00:55:12]} {[%emt 00:01:34]} Be7 {[%clk 00:41:20]} {[%emt 00:02:44]} 20.
Nf4 {[%clk 00:47:47]} {[%emt 00:07:55]} Rac8 {[%clk 00:37:08]} {[%emt
00:04:43]} 21. Qg4 {[%clk 00:32:12]} {[%emt 00:16:04]} Red8 {[%clk 00:31:29]}
{[%emt 00:06:11]} 22. Nh5 {[%clk 00:30:26]} {[%emt 00:02:15]} Bf8 {[%clk
00:29:14]} {[%emt 00:02:46]} 23. Re2 {[%clk 00:20:51]} {[%emt 00:10:04]} a5
{[%clk 00:21:31]} {[%emt 00:08:14]} 24. Rd3 {[%clk 00:15:20]} {[%emt 00:06:01]}
Ba6 {[%clk 00:15:57]} {[%emt 00:06:04]} 25. Rh3 {[%clk 00:15:29]} {[%emt
00:00:21]} Kh8 {[%clk 00:13:45]} {[%emt 00:02:42]} 26. Rd2 {[%clk 00:11:17]}
{[%emt 00:04:42]} Qxe5 {[%clk 00:13:03]} {[%emt 00:01:12]} 27. Nf3 {[%clk
00:10:35]} {[%emt 00:01:10]} Qe2 {[%clk 00:11:01]} {[%emt 00:02:25]} 0-1

[Event "NJSK 2021 Jeugd C"]
[Site "Almelo, Netherlands"]
[Date "2021.08.06"]
[Round "8.8"]
[White "Ramdien, Steven"]
[Black "Blom, Rens"]
[Result "0-1"]
[TimeControl "90min + 30sec/move"]
[WhiteElo "1589"]
[BlackElo "1650"]

1. e4 {[%clk 01:30:59]} d6 {[%clk 01:30:55]} {[%emt 00:00:05]} 2. d4 {[%clk
01:31:25]} {[%emt 00:00:04]} Nf6 {[%clk 01:31:22]} {[%emt 00:00:04]} 3. Nc3
{[%clk 01:31:50]} {[%emt 00:00:05]} g6 {[%clk 01:31:46]} {[%emt 00:00:05]} 4.
Bg5 {[%clk 01:31:58]} {[%emt 00:00:23]} Bg7 {[%clk 01:32:05]} {[%emt 00:00:11]}
5. Bc4 {[%clk 01:32:03]} {[%emt 00:00:25]} O-O {[%clk 01:31:37]} {[%emt
00:00:57]} 6. Qd2 {[%clk 01:32:16]} {[%emt 00:00:17]} c6 {[%clk 01:30:50]}
{[%emt 00:01:18]} 7. f3 {[%clk 01:30:25]} {[%emt 00:02:20]} b5 {[%clk
01:30:29]} {[%emt 00:00:51]} 8. Bb3 {[%clk 01:30:41]} {[%emt 00:00:14]} a5
{[%clk 01:29:14]} {[%emt 00:01:46]} 9. a3 {[%clk 01:30:56]} {[%emt 00:00:14]}
a4 {[%clk 01:27:03]} {[%emt 00:02:41]} 10. Ba2 {[%clk 01:31:14]} {[%emt
00:00:13]} Qa5 {[%clk 01:21:44]} {[%emt 00:05:48]} 11. g4 {[%clk 01:24:11]}
{[%emt 00:07:32]} c5 {[%clk 01:16:53]} {[%emt 00:05:22]} 12. d5 {[%clk
01:22:46]} {[%emt 00:01:55]} b4 {[%clk 01:12:38]} {[%emt 00:04:45]} 13. Nge2
{[%clk 01:05:11]} {[%emt 00:18:05]} bxc3 {[%clk 01:07:28]} {[%emt 00:05:41]} 14.
Nxc3 {[%clk 01:05:30]} {[%emt 00:00:11]} Nbd7 {[%clk 01:05:18]} {[%emt
00:02:40]} 15. h4 {[%clk 01:04:30]} {[%emt 00:01:30]} Ne5 {[%clk 01:04:07]}
{[%emt 00:01:41]} 16. Rh3 {[%clk 01:04:06]} {[%emt 00:00:53]} Rb8 {[%clk
00:59:52]} {[%emt 00:04:46]} 17. h5 {[%clk 01:02:58]} {[%emt 00:01:37]} gxh5
{[%clk 00:52:30]} {[%emt 00:07:52]} 18. Bh6 {[%clk 00:55:21]} {[%emt 00:08:07]}
Rxb2 {[%clk 00:44:26]} {[%emt 00:08:34]} 19. Bxg7 {[%clk 00:55:07]} {[%emt
00:00:44]} Kxg7 {[%clk 00:44:45]} {[%emt 00:00:12]} 20. O-O-O {[%clk 00:54:53]}
{[%emt 00:00:43]} Rb7 {[%clk 00:34:53]} {[%emt 00:10:23]} 21. Rg1 {[%clk
00:54:40]} {[%emt 00:00:42]} Kh8 {[%clk 00:33:22]} {[%emt 00:02:01]} 22. g5
{[%clk 00:52:03]} {[%emt 00:03:07]} Nxe4 {[%clk 00:27:00]} {[%emt 00:06:52]} 23.
fxe4 {[%clk 00:51:16]} {[%emt 00:01:16]} Bxh3 {[%clk 00:27:14]} {[%emt
00:00:16]} 24. Rg3 {[%clk 00:47:07]} {[%emt 00:04:38]} Bg4 {[%clk 00:26:44]}
{[%emt 00:01:01]} 25. Qf4 {[%clk 00:46:53]} {[%emt 00:00:43]} Ng6 {[%clk
00:24:55]} {[%emt 00:02:21]} 26. Qf2 {[%clk 00:46:30]} {[%emt 00:00:51]} f6
{[%emt 00:04:18]} 27. Ne2 {[%clk 00:42:02]} {[%emt 00:02:14]} fxg5 {[%clk
00:23:04]} {[%emt 00:01:18]} 28. Qg2 {[%clk 00:41:25]} {[%emt 00:01:03]} Qe1#
{[%clk 00:22:29]} {[%emt 00:00:36]} 0-1